bitfinex-derivatives/quotes_BTCF0:USTF0_20250517
["timestamp","ask_amount","ask_price","bid_price","bid_amount"]
[1747478682722,0.27913123,102880.0,102870.0,0.99968671]
[1747478683721,0.27913123,102880.0,102870.0,0.92041162]
[1747478684228,0.27913123,102880.0,102870.0,1.14685162]
[1747478685122,0.27913123,102880.0,102870.0,1.1839315]
[1747478685924,0.31193123,102880.0,102870.0,1.1839315]
[1747478687831,0.31193123,102880.0,102870.0,1.26320659]
[1747478691328,0.31193123,102880.0,102870.0,0.81404659]
[1747478691529,0.31193123,102880.0,102870.0,1.03712659]
[1747478691730,0.31193123,102880.0,102870.0,0.81404659]
[1747478692321,0.31193123,102880.0,102870.0,0.7347715]
[1747478695431,0.31193123,102880.0,102870.0,0.81404659]
[1747478696025,0.46350248,102880.0,102870.0,0.81404659]
[1747478698332,0.46350248,102880.0,102870.0,0.82640925]
[1747478701327,0.46350248,102880.0,102870.0,0.60789416]
[1747478701529,0.54277757,102880.0,102870.0,0.60789416]
[1747478701830,0.54277757,102880.0,102870.0,0.32303416]
[1747478702338,0.46350248,102880.0,102870.0,0.32303416]
[1747478703432,0.82430248,102880.0,102870.0,0.32303416]
[1747478704037,0.46350248,102880.0,102870.0,0.32303416]
[1747478704938,0.46350248,102880.0,102870.0,0.38723416]
[1747478705640,0.46350248,102880.0,102870.0,0.74803416]
[1747478706341,0.46350248,102880.0,102870.0,0.96935416]
[1747478706938,0.46350248,102880.0,102870.0,1.04862925]
[1747478707644,0.46350248,102880.0,102870.0,0.96935416]
[1747478707831,0.46350248,102880.0,102870.0,0.74803416]
[1747478708237,0.46350248,102880.0,102870.0,0.73575321]
[1747478708939,0.82430248,102880.0,102870.0,0.37495321]
[1747478709131,0.46350248,102880.0,102870.0,0.37495321]
[1747478709332,0.82430248,102880.0,102870.0,0.31075321]
[1747478709533,0.54277757,102880.0,102870.0,0.31075321]
[1747478710245,0.90357757,102880.0,102870.0,0.31075321]
[1747478710642,0.90357757,102880.0,102870.0,0.34225321]
[1747478711443,0.90357757,102880.0,102870.0,0.37285321]
[1747478711740,0.54277757,102880.0,102870.0,0.37285321]
[1747478711939,0.90357757,102880.0,102870.0,0.37285321]
[1747478712340,0.82430248,102880.0,102870.0,0.37285321]
[1747478717748,0.90357757,102880.0,102870.0,0.37285321]
[1747478721142,0.54277757,102880.0,102870.0,0.37285321]
[1747478721342,0.84294907,102880.0,102870.0,0.37285321]
[1747478721744,0.48214907,102880.0,102870.0,0.37285321]
[1747478721941,0.84294907,102880.0,102870.0,0.37285321]
[1747478722141,0.48214907,102880.0,102870.0,0.37285321]
[1747478722441,0.84294907,102880.0,102870.0,0.37285321]
[1747478724238,0.48214907,102880.0,102870.0,0.37285321]
[1747478724438,0.84294907,102880.0,102870.0,0.37285321]
[1747478724847,0.76367398,102880.0,102870.0,0.38513416]
[1747478725240,0.40287398,102880.0,102870.0,0.38513416]
[1747478725444,0.76367398,102880.0,102870.0,0.38513416]
[1747478725752,0.40287398,102880.0,102870.0,0.38513416]
[1747478725954,0.76367398,102880.0,102870.0,0.38513416]
[1747478727753,0.84294907,102880.0,102870.0,0.38513416]
[1747478727950,0.84294907,102880.0,102870.0,0.19077746]
[1747478728150,1.24222416,102880.0,102870.0,0.29123426]
[1747478728455,1.16294907,102880.0,102870.0,0.29123426]
[1747478730960,1.16294907,102880.0,102870.0,0.24574345]
[1747478733057,1.28412453,102880.0,102870.0,0.27824345]
[1747478733556,1.28412453,102880.0,102870.0,0.26596033]
[1747478736758,1.19318178,102880.0,102870.0,0.26596033]
[1747478737158,1.01238178,102880.0,102870.0,0.26596033]
[1747478737357,1.37862394,102880.0,102870.0,0.26596033]
[1747478739649,1.37862394,102880.0,102870.0,0.27824345]
[1747478739958,1.05862394,102880.0,102870.0,0.27824345]
[1747478742259,0.97934885,102880.0,102870.0,0.27824345]
[1747478742457,1.05862394,102880.0,102870.0,0.27824345]
[1747478743260,0.78501095,102880.0,102870.0,0.79367854]
[1747478743456,0.36001095,102880.0,102870.0,1.21687854]
[1747478743658,0.24518392,102880.0,102870.0,1.29615363]
[1747478743864,0.19779682,102880.0,102870.0,1.39335763]
[1747478744063,0.03664052,102880.0,102870.0,1.39335763]
[1747478744251,6e-08,102880.0,102870.0,1.39335763]
[1747478744762,6e-08,102880.0,102870.0,1.40304282]
[1747478745257,0.15167343,102900.0,102870.0,2.21377035]
[1747478745558,0.15167343,102900.0,102890.0,0.71366918]
[1747478745757,3e-08,102900.0,102890.0,1.51062918]
[1747478746055,3e-08,102900.0,102890.0,1.95201718]
[1747478746561,0.00145844,102910.0,102900.0,0.1943001]
[1747478746754,0.24648624,102920.0,102910.0,0.1942812]
[1747478746951,0.24648624,102920.0,102910.0,1.16611629]
[1747478747152,0.42648624,102920.0,102910.0,1.16611629]
[1747478747760,0.4079623,102920.0,102910.0,1.16611629]
[1747478747956,0.4395623,102920.0,102910.0,1.16611629]
[1747478749354,0.2453,102920.0,102910.0,1.16611629]
[1747478749562,0.25074216,102920.0,102910.0,1.16611629]
[1747478753068,0.25074216,102920.0,102910.0,1.0868412]
[1747478753260,0.25074216,102920.0,102910.0,1.16611629]
[1747478756460,0.25074216,102920.0,102910.0,0.80531629]
[1747478756664,0.25074216,102920.0,102910.0,1.16611629]
[1747478760763,0.21914216,102920.0,102910.0,1.16611629]
[1747478761167,0.18744216,102920.0,102910.0,1.24539138]
[1747478761567,0.18744216,102920.0,102910.0,1.34255938]
[1747478762266,0.10668114,102940.0,102930.0,0.1942435]
[1747478762465,0.10668114,102940.0,102930.0,1.06563859]
[1747478762466,0.07598114,102940.0,102930.0,1.06563859]
[1747478762773,0.07598114,102940.0,102930.0,1.16323859]
[1747478762975,0.27020574,102940.0,102930.0,1.16323859]
[1747478763272,0.56188083,102940.0,102930.0,0.7230835]
[1747478763670,0.56188083,102940.0,102930.0,0.5072035]
[1747478763868,0.56188083,102940.0,102930.0,0.2918435]
[1747478764269,0.48260574,102940.0,102930.0,0.2918435]
[1747478764574,0.48260574,102940.0,102930.0,0.37111859]
[1747478764767,0.4880479,102940.0,102930.0,0.2918435]
[1747478764969,0.4880479,102940.0,102930.0,0.7229235]
[1747478767266,0.4880479,102940.0,102930.0,0.2918435]
[1747478767474,0.1942434,102930.0,102920.0,0.9754623]
[1747478767777,0.72761849,102930.0,102920.0,0.9754623]
[1747478767970,0.72761849,102930.0,102920.0,0.5756623]
[1747478768178,0.90761849,102930.0,102920.0,0.9755823]
[1747478768379,0.90761849,102930.0,102920.0,0.5446623]
[1747478768968,0.90761849,102930.0,102920.0,0.1942623]
[1747478769275,0.8283434,102930.0,102920.0,0.1942623]
[1747478769981,0.8283434,102930.0,102920.0,0.2252623]
[1747478770182,0.8283434,102930.0,102920.0,0.80741543]
[1747478770784,0.8283434,102930.0,102920.0,0.6865623]
[1747478771386,0.4675434,102930.0,102920.0,0.6865623]
[1747478772177,0.8283434,102930.0,102920.0,0.6865623]
[1747478772382,0.4675434,102930.0,102920.0,0.6865623]
[1747478773393,0.4675434,102930.0,102920.0,1.16821543]
[1747478773794,0.2733,102930.0,102920.0,1.16821543]
[1747478773993,0.4675434,102930.0,102920.0,1.16821543]
[1747478774794,0.4675434,102930.0,102920.0,1.20985628]
[1747478776093,0.4675434,102930.0,102920.0,0.84905628]
[1747478776392,0.4675434,102930.0,102920.0,1.20985628]
[1747478777694,0.4675434,102930.0,102920.0,1.24683698]
[1747478778495,0.4675434,102930.0,102920.0,1.29218688]
[1747478778696,0.4364434,102930.0,102920.0,1.29218688]
[1747478778997,0.2117,102930.0,102920.0,1.29218688]
[1747478779896,0.4059433,102930.0,102920.0,1.17133375]
[1747478780096,0.4383433,102930.0,102920.0,1.29218688]
[1747478780797,0.4383433,102930.0,102920.0,1.17133375]
[1747478781096,0.44378546,102930.0,102920.0,1.17133375]
[1747478781293,0.44378546,102930.0,102920.0,1.20463375]
[1747478783903,0.24954216,102930.0,102920.0,1.25394135]
[1747478784101,0.21714216,102930.0,102920.0,1.25394135]
[1747478784300,0.21714216,102930.0,102920.0,1.37479448]
[1747478785905,0.21714216,102930.0,102920.0,1.37479448]
[1747478789805,0.24724216,102930.0,102920.0,1.01399448]
[1747478790006,0.44148566,102930.0,102920.0,1.33781378]
[1747478790202,0.44148566,102930.0,102920.0,0.78616065]
[1747478790407,0.56233879,102930.0,102920.0,0.78804065]
[1747478790706,0.95453879,102930.0,102920.0,0.36156065]
[1747478791009,0.95453879,102930.0,102920.0,0.13629835]
[1747478791205,0.95453879,102930.0,102920.0,0.33056065]
[1747478791503,0.91300832,102930.0,102920.0,0.33056065]
[1747478791898,0.91300832,102930.0,102920.0,0.0946575]
[1747478792099,0.91300832,102930.0,102920.0,0.2889199]
[1747478792907,0.91300832,102930.0,102920.0,0.0946575]
[1747478793112,1.24300832,102930.0,102920.0,0.0946575]
[1747478793310,1.28457311,102930.0,102920.0,0.0946575]
[1747478793712,1.40531511,102930.0,102920.0,0.0493076]
[1747478794302,1.50247511,102930.0,102920.0,0.0493076]
[1747478794503,2.29956256,102930.0,102920.0,0.0493076]
[1747478795797,0.1942624,102920.0,102910.0,0.0390291]
[1747478796001,1.11704985,102920.0,102910.0,0.0390291]
[1747478796204,1.39421785,102920.0,102910.0,0.0390291]
[1747478797106,1.51495985,102920.0,102910.0,0.0390291]
[1747478797707,1.13495985,102920.0,102910.0,0.0390291]
[1747478801006,1.13495985,102920.0,102910.0,0.00194335]
[1747478801615,1.51495985,102920.0,102910.0,0.00194335]
[1747478802214,0.1943001,102900.0,102890.0,0.03708575]
[1747478802421,1.61910755,102900.0,102890.0,0.03708575]
[1747478802605,1.68370755,102900.0,102890.0,0.03708575]
[1747478803217,1.86370755,102900.0,102890.0,0.03708575]
[1747478803516,1.86470755,102900.0,102890.0,0.23340475]
[1747478803927,2.0761887,102900.0,102890.0,0.23340475]
[1747478804412,1.3545887,102900.0,102890.0,0.23340475]
[1747478804722,2.0761887,102900.0,102890.0,0.03908575]
[1747478804910,1.7061887,102900.0,102890.0,0.03908575]
[1747478805823,1.7061887,102900.0,102890.0,0.23340465]
[1747478806020,1.7061887,102900.0,102890.0,0.1963189]
[1747478806211,1.7061887,102900.0,102890.0,0.002]
[1747478806412,1.7121887,102900.0,102890.0,0.002]
[1747478806911,1.7061887,102900.0,102890.0,0.002]
[1747478808323,1.5854467,102900.0,102890.0,0.002]
[1747478809220,1.5854467,102900.0,102890.0,0.196319]
[1747478809721,1.5854467,102900.0,102890.0,0.002]
[1747478810024,1.5854467,102900.0,102890.0,0.1963189]
[1747478810218,2.03733415,102900.0,102890.0,0.004]
[1747478810422,2.04277631,102900.0,102890.0,0.004]
[1747478816025,2.16351831,102900.0,102890.0,0.004]
[1747478816925,1.44191831,102900.0,102890.0,0.004]
[1747478817130,1.43942341,102900.0,102890.0,0.1983188]
[1747478817428,1.24512331,102900.0,102890.0,0.2948188]
[1747478817618,0.65782321,102900.0,102890.0,0.2948188]
[1747478817819,1.13951066,102900.0,102890.0,0.2948188]
[1747478820128,1.01876866,102900.0,102890.0,0.2948188]
[1747478824123,1.01876866,102900.0,102890.0,0.294819]
[1747478824324,1.01876866,102900.0,102890.0,0.1005]
[1747478824522,1.44965611,102900.0,102890.0,0.0367]
[1747478825020,1.66081611,102900.0,102890.0,0.0367]
[1747478825233,1.35081611,102900.0,102890.0,0.0367]
[1747478825416,1.34981611,102900.0,102890.0,0.0347]
[1747478825621,1.35381611,102900.0,102890.0,0.0357]
[1747478825826,1.35281611,102900.0,102890.0,0.0337]
[1747478826035,1.35681611,102900.0,102890.0,0.0347]
[1747478827035,1.38681896,102900.0,102890.0,0.0347]
[1747478827528,1.71681896,102900.0,102890.0,0.0347]
[1747478830335,1.50565896,102900.0,102890.0,0.0347]
[1747478830631,1.71681896,102900.0,102890.0,0.0347]
[1747478831237,1.59607696,102900.0,102890.0,0.0347]
[1747478832524,1.26607696,102900.0,102890.0,0.0347]
[1747478836638,1.29697696,102900.0,102890.0,0.0347]
[1747478837440,1.05520206,102900.0,102890.0,0.229019]
[1747478837739,1.17608951,102900.0,102890.0,0.229019]
[1747478837936,1.17608951,102900.0,102890.0,0.260419]
[1747478837937,0.96492951,102900.0,102890.0,0.260419]
[1747478838240,0.93402951,102900.0,102890.0,0.292919]
[1747478838643,0.90212951,102900.0,102890.0,0.292919]
[1747478839045,0.90022075,102900.0,102890.0,0.292919]
[1747478839341,0.53942075,102900.0,102890.0,0.292919]
[1747478839538,0.34512085,102900.0,102890.0,0.292919]
[1747478839841,0.53942095,102900.0,102890.0,0.292919]
[1747478840236,0.35942095,102900.0,102890.0,0.292919]
[1747478840638,0.35942095,102900.0,102890.0,0.33470524]
[1747478841346,0.53942095,102900.0,102890.0,0.33470524]
[1747478842941,0.47870517,102900.0,102890.0,0.33470524]
[1747478844045,0.47870517,102900.0,102890.0,0.37179099]
[1747478844243,0.51140517,102900.0,102890.0,0.37179099]
[1747478848248,0.63229262,102900.0,102890.0,0.37179099]
[1747478848640,0.51140517,102900.0,102890.0,0.37179099]
[1747478849247,0.31710507,102900.0,102890.0,0.37179099]
[1747478849543,0.51140517,102900.0,102890.0,0.37179099]
[1747478850038,0.42044226,102900.0,102890.0,0.37179099]
[1747478853255,0.49977661,102900.0,102890.0,0.37179099]
[1747478854151,0.42044226,102900.0,102890.0,0.37179099]
[1747478854342,0.38774226,102900.0,102890.0,0.66224534]
[1747478857355,0.38774226,102900.0,102890.0,0.58291099]
[1747478859252,0.41894226,102900.0,102890.0,0.58291099]
[1747478859897,0.41894226,102900.0,102890.0,0.37179099]
[1747478860150,0.41894226,102900.0,102890.0,0.58291099]
[1747478860854,0.41894226,102900.0,102890.0,0.70378354]
[1747478860855,0.19344216,102900.0,102890.0,0.70378354]
[1747478861248,0.01344216,102900.0,102890.0,0.70378354]
[1747478862056,0.01344216,102900.0,102890.0,1.06458354]
[1747478862258,0.01344216,102900.0,102890.0,1.16177154]
[1747478862459,0.42459696,102910.0,102900.0,0.1943001]
[1747478862649,0.42459696,102910.0,102900.0,0.98339265]
[1747478863653,0.43459696,102910.0,102900.0,1.08156865]
[1747478864148,0.01,102910.0,102900.0,1.22917133]
[1747478864861,0.01,102910.0,102900.0,1.57957133]
[1747478865562,0.005,102910.0,102900.0,1.57957133]
[1747478865762,0.34972751,102920.0,102910.0,0.1942812]
[1747478865961,0.34972751,102920.0,102910.0,0.4996612]
[1747478866163,0.52972751,102920.0,102910.0,0.4996612]
[1747478866859,0.53072751,102920.0,102910.0,0.4996612]
[1747478867063,0.4397646,102920.0,102910.0,0.54144744]
[1747478868363,0.4727646,102920.0,102910.0,0.54144744]
[1747478868566,0.4747646,102920.0,102910.0,0.54244744]
[1747478870066,0.2805,102920.0,102910.0,0.54244744]
[1747478870267,0.48020456,102920.0,102910.0,0.54244744]
[1747478870567,0.48020456,102920.0,102910.0,0.57953319]
[1747478871762,0.28594216,102920.0,102910.0,0.57953319]
[1747478871969,0.28594216,102920.0,102910.0,0.70040574]
[1747478872266,0.28594216,102920.0,102910.0,0.57953319]
[1747478873676,0.22174216,102920.0,102910.0,0.70040574]
[1747478875269,0.04174216,102920.0,102910.0,0.70040574]
[1747478875871,0.04174216,102920.0,102910.0,0.7098953]
[1747478876064,0.07374216,102920.0,102910.0,0.7098953]
[1747478876876,0.07374216,102920.0,102910.0,1.0602953]
[1747478877168,0.25374216,102920.0,102910.0,1.0602953]
[1747478879276,0.25374216,102920.0,102910.0,1.01872226]
[1747478879575,0.25374216,102920.0,102910.0,1.07216226]
[1747478881780,0.25374216,102920.0,102910.0,1.43296226]
[1747478882081,0.25374216,102920.0,102910.0,1.43288226]
[1747478883181,0.25374216,102920.0,102910.0,1.47823216]
[1747478887082,0.25374216,102920.0,102910.0,1.5386987]
[1747478888584,0.28684216,102920.0,102910.0,1.5386987]
[1747478889981,0.28684216,102920.0,102910.0,1.31820914]
[1747478890183,0.28684216,102920.0,102910.0,1.52916914]
[1747478890383,0.28684216,102920.0,102910.0,1.31820914]
[1747478890585,0.28684216,102920.0,102910.0,1.74012914]
[1747478891278,0.28684216,102920.0,102910.0,1.74965484]
[1747478891786,0.28684216,102920.0,102910.0,1.76187669]
[1747478893383,0.28684216,102920.0,102910.0,1.85292913]
[1747478894080,0.28684216,102920.0,102910.0,1.63244343]
[1747478894275,0.28684216,102920.0,102910.0,1.76406392]
[1747478894476,0.28684216,102920.0,102910.0,1.84336343]
[1747478895382,0.28684216,102920.0,102910.0,1.85312669]
[1747478896482,0.28684216,102920.0,102910.0,1.80381909]
[1747478900084,0.28684216,102920.0,102910.0,1.75846919]
[1747478900792,0.25374216,102920.0,102910.0,1.75846919]
[1747478901085,0.12346291,102930.0,102920.0,0.1942623]
[1747478901291,0.15406291,102930.0,102920.0,0.80706132]
[1747478901587,0.15406291,102930.0,102920.0,0.72776181]
[1747478902088,0.33406291,102930.0,102920.0,0.78119181]
[1747478902392,0.33806291,102930.0,102920.0,0.78219181]
[1747478902991,0.34106291,102930.0,102920.0,0.78319181]
[1747478904387,0.34106291,102930.0,102920.0,0.42239181]
[1747478904593,0.37346291,102930.0,102920.0,0.78319181]
[1747478905091,0.37346291,102930.0,102920.0,0.7038923]
[1747478905290,0.37346291,102930.0,102920.0,0.78319181]
[1747478905795,0.37346291,102930.0,102920.0,0.7038923]
[1747478906090,1.00780592,102930.0,102920.0,0.7036323]
[1747478906293,1.00780592,102930.0,102920.0,0.6715323]
[1747478906494,1.00780592,102930.0,102920.0,0.2496923]
[1747478906695,1.00780592,102930.0,102920.0,0.6715323]
[1747478907091,1.00780592,102930.0,102920.0,0.4606523]
[1747478907297,1.00780592,102930.0,102920.0,0.71331854]
[1747478909294,1.00780592,102930.0,102920.0,0.50243854]
[1747478910436,1.00780592,102930.0,102920.0,0.54793647]
[1747478911001,0.91684301,102930.0,102920.0,0.4606523]
[1747478911206,0.91684301,102930.0,102920.0,0.4929523]
[1747478911696,0.91684301,102930.0,102920.0,0.53008012]
[1747478912502,0.91684301,102930.0,102920.0,0.4929523]
[1747478915002,0.92228517,102930.0,102920.0,0.4395223]
[1747478921312,0.93228517,102930.0,102920.0,0.4395223]
[1747478928812,0.85298566,102930.0,102920.0,0.4395223]
[1747478929212,0.93228517,102930.0,102920.0,0.4395223]
[1747478933014,0.93228517,102930.0,102920.0,0.48142637]
[1747478933214,0.93228517,102930.0,102920.0,0.51362637]
[1747478933415,0.93228517,102930.0,102920.0,0.54582637]
[1747478937519,1.02336716,102930.0,102920.0,0.54582637]
[1747478937724,1.14480981,102930.0,102920.0,0.59134927]
[1747478938217,0.78400981,102930.0,102920.0,0.59134927]
[1747478938521,1.14480981,102930.0,102920.0,0.59134927]
[1747478939719,1.0655103,102930.0,102920.0,0.59134927]
[1747478940018,1.14480981,102930.0,102920.0,0.59134927]
[1747478941914,1.14480981,102930.0,102920.0,0.62849626]
[1747478944517,1.14480981,102930.0,102920.0,0.41753626]
[1747478947728,1.14480981,102930.0,102920.0,0.4299186]
[1747478952128,1.0655103,102930.0,102920.0,0.4299186]
[1747478952427,1.14480981,102930.0,102920.0,0.4299186]
[1747478953727,1.14480981,102930.0,102920.0,0.6405586]
[1747478954028,1.0655103,102930.0,102920.0,0.6405586]
[1747478954331,1.14480981,102930.0,102920.0,0.6405586]
[1747478955226,1.0655103,102930.0,102920.0,0.6405586]
[1747478956931,0.7047103,102930.0,102920.0,0.6405586]
[1747478957118,0.4779668,102930.0,102920.0,0.6405586]
[1747478957326,0.6092103,102930.0,102920.0,0.71985811]
[1747478957525,0.4149668,102930.0,102920.0,0.71985811]
[1747478957823,0.4149668,102930.0,102920.0,1.08065811]
[1747478958630,0.4149668,102930.0,102920.0,0.71985811]
[1747478958834,0.6092103,102930.0,102920.0,0.6405586]
[1747478959434,0.48776765,102930.0,102920.0,0.7012558]
[1747478961732,0.51936765,102930.0,102920.0,0.7012558]
[1747478963530,0.51936765,102930.0,102920.0,0.9118158]
[1747478963733,0.63106716,102930.0,102920.0,0.9118158]
[1747478966330,0.63106716,102930.0,102920.0,0.8511186]
[1747478969139,0.63106716,102930.0,102920.0,0.6405586]
[1747478969335,1.02356716,102930.0,102920.0,0.7867186]
[1747478969632,1.02356716,102930.0,102920.0,0.3655186]
[1747478969834,1.10286667,102930.0,102920.0,0.1712563]
[1747478970039,1.10286667,102930.0,102920.0,0.3332186]
[1747478970234,1.02356716,102930.0,102920.0,0.3332186]
[1747478970540,1.10286667,102930.0,102920.0,0.3332186]
[1747478970741,1.02356716,102930.0,102920.0,0.3332186]
[1747478971548,1.00498897,102930.0,102920.0,0.24579163]
[1747478971839,1.08428848,102930.0,102920.0,0.27779163]
[1747478973638,1.20555716,102930.0,102920.0,0.27779163]
[1747478974143,1.20555716,102930.0,102920.0,0.2282623]
[1747478978544,1.56635716,102930.0,102920.0,0.2282623]
[1747478978838,1.56635716,102930.0,102920.0,0.034]
[1747478979037,1.64565667,102930.0,102920.0,0.002]
[1747478979642,1.64565667,102930.0,102920.0,0.1962623]
[1747478979941,1.49385336,102930.0,102920.0,0.1962623]
[1747478980629,1.37258468,102930.0,102920.0,0.002]
[1747478980827,1.29328517,102930.0,102920.0,0.002]
[1747478981343,0.57168517,102930.0,102920.0,0.002]
[1747478981540,1.29328517,102930.0,102920.0,0.002]
[1747478985530,1.29328517,102930.0,102920.0,0.0343]
[1747478985735,1.37258468,102930.0,102920.0,0.0343]
[1747478985943,0.65098468,102930.0,102920.0,0.0343]
[1747478986241,1.37258468,102930.0,102920.0,0.0343]
[1747478987742,1.29328517,102930.0,102920.0,0.0343]
[1747478987930,1.37258468,102930.0,102920.0,0.0343]
[1747478992841,1.37258468,102930.0,102920.0,0.002]
[1747478993345,1.52974468,102930.0,102910.0,0.03354335]
[1747478993534,0.80546032,102920.0,102910.0,0.03354335]
[1747478994243,0.98546032,102920.0,102910.0,0.03354335]
[1747478994749,0.98746032,102920.0,102910.0,0.03354335]
[1747478995546,1.01746032,102920.0,102910.0,0.03454335]
[1747478996044,1.01746032,102920.0,102910.0,0.03354335]
[1747478996239,0.91016081,102920.0,102910.0,0.03354335]
[1747478996436,0.8006613,102920.0,102910.0,0.29312355]
[1747478996641,0.7390613,102920.0,102910.0,0.37242306]
[1747478996944,0.3782613,102920.0,102910.0,0.94366306]
[1747478997348,0.184,102920.0,102910.0,1.15418306]
[1747478997551,0.3782614,102920.0,102910.0,1.15418306]
[1747478997752,0.3782614,102920.0,102910.0,0.79338306]
[1747478998141,0.3782614,102920.0,102910.0,0.83530108]
[1747479001344,0.3782614,102920.0,102910.0,1.11680157]
[1747479002050,0.3782614,102920.0,102910.0,1.19610108]
[1747479002348,0.3782611,102920.0,102910.0,1.19610108]
[1747479003251,0.46921227,102920.0,102910.0,1.19610108]
[1747479003755,0.46821227,102920.0,102910.0,1.19610108]
[1747479004552,0.46621227,102920.0,102910.0,1.19710108]
[1747479005152,0.47165443,102920.0,102910.0,1.19710108]
[1747479006450,0.38070326,102920.0,102910.0,1.30328592]
[1747479008054,0.38070326,102920.0,102910.0,1.35275605]
[1747479009857,0.18644216,102920.0,102910.0,1.35275605]
[1747479010057,0.38070316,102920.0,102910.0,1.35275605]
[1747479010558,0.18644216,102920.0,102910.0,1.35275605]
[1747479011358,0.38070326,102920.0,102910.0,1.35275605]
[1747479011858,0.38070326,102920.0,102910.0,1.40619605]
[1747479012660,0.18644216,102920.0,102910.0,1.40619605]
[1747479012961,0.38070326,102920.0,102910.0,1.40619605]
[1747479014559,0.18644216,102920.0,102910.0,1.40619605]
[1747479017456,0.18644216,102920.0,102910.0,1.19575605]
[1747479017756,0.18644216,102920.0,102910.0,1.40607605]
[1747479022366,0.18644216,102920.0,102910.0,1.04527605]
[1747479022568,0.18644216,102920.0,102910.0,1.40607605]
[1747479027167,0.21864216,102920.0,102910.0,1.40607605]
[1747479027758,0.21864216,102920.0,102910.0,1.49709163]
[1747479029670,0.25074216,102920.0,102910.0,1.49709163]
[1747479030769,0.25074216,102920.0,102910.0,1.45158384]
[1747479031872,0.25074216,102920.0,102910.0,1.24126384]
[1747479032169,0.25074216,102920.0,102910.0,1.45150384]
[1747479032170,0.44500086,102920.0,102910.0,1.45150384]
[1747479032356,0.47560086,102920.0,102910.0,1.45150384]
[1747479032967,0.47560086,102920.0,102910.0,1.03074384]
[1747479033270,0.47560086,102920.0,102910.0,1.45130384]
[1747479035075,0.28134216,102920.0,102910.0,1.45130384]
[1747479035375,0.21854216,102920.0,102910.0,1.45130384]
[1747479035672,0.18644216,102920.0,102910.0,1.54847184]
[1747479035873,0.18644216,102920.0,102910.0,1.92870122]
[1747479036073,0.18644216,102920.0,102910.0,1.84940171]
[1747479036265,0.00644216,102920.0,102910.0,1.84940171]
[1747479037765,0.00644216,102920.0,102910.0,1.48860171]
[1747479037966,0.00644216,102920.0,102910.0,1.91007876]
[1747479038565,0.00644216,102920.0,102910.0,1.81291076]
[1747479040274,0.00644216,102920.0,102910.0,2.17371076]
[1747479040571,0.00644216,102920.0,102910.0,2.30282183]
[1747479041473,0.00644216,102920.0,102910.0,1.58122183]
[1747479041777,0.00644216,102920.0,102910.0,2.30282183]
[1747479043177,0.18644216,102920.0,102910.0,2.30282183]
[1747479044377,0.00644216,102920.0,102910.0,2.30282183]
[1747479045273,0.18644216,102920.0,102910.0,2.30282183]
[1747479046570,0.18644216,102920.0,102910.0,2.38212134]
[1747479046773,0.18644216,102920.0,102910.0,2.30282183]
[1747479047069,0.18644216,102920.0,102910.0,2.38212134]
[1747479047273,0.1077,102930.0,102920.0,0.1942587]
[1747479047477,0.1077,102930.0,102920.0,0.80615772]
[1747479048079,0.2553,102930.0,102920.0,0.80615772]
[1747479048282,0.2553,102930.0,102920.0,0.85958772]
[1747479048579,0.2573,102930.0,102920.0,0.86058772]
[1747479048979,0.2593,102930.0,102920.0,0.86058772]
[1747479049582,0.2896,102930.0,102920.0,0.86058772]
[1747479049779,0.29504216,102930.0,102920.0,0.86058772]
[1747479049976,0.29504216,102930.0,102920.0,0.90250574]
[1747479050278,0.29504216,102930.0,102920.0,0.82320623]
[1747479052181,0.29504216,102930.0,102920.0,0.97469924]
[1747479055387,0.29504216,102930.0,102920.0,1.0365369]
[1747479055682,0.29504216,102930.0,102920.0,1.11583641]
[1747479056582,0.29504216,102930.0,102920.0,1.0365369]
[1747479058589,0.29504216,102930.0,102920.0,0.6757369]
[1747479058886,0.29504216,102930.0,102920.0,1.0365369]
[1747479059081,0.29504216,102930.0,102920.0,0.6757369]
[1747479059291,0.29504216,102930.0,102920.0,1.0365369]
[1747479060587,0.29504216,102930.0,102920.0,1.0460594]
[1747479062278,0.29504216,102930.0,102920.0,0.96675989]
[1747479062580,0.29504216,102930.0,102920.0,1.2465369]
[1747479062779,0.29504216,102930.0,102920.0,1.0365369]
[1747479062985,0.48928196,102930.0,102920.0,1.0365369]
[1747479063288,0.29504216,102930.0,102920.0,1.4566569]
[1747479063586,0.29504216,102930.0,102920.0,1.46638494]
[1747479064286,0.29504216,102930.0,102920.0,1.40454728]
[1747479065687,0.26474216,102930.0,102920.0,1.48384679]
[1747479065989,0.26474216,102930.0,102920.0,1.83424679]
[1747479066185,0.26474216,102930.0,102920.0,1.77364959]
[1747479068090,0.26474216,102930.0,102920.0,1.80410788]
[1747479068298,0.26474216,102930.0,102920.0,1.44330788]
[1747479068486,0.26474216,102930.0,102920.0,2.16690788]
[1747479069190,0.19944216,102930.0,102920.0,2.16690788]
[1747479070595,0.0709,102940.0,102930.0,0.1942398]
[1747479070785,0.0709,102940.0,102930.0,0.72673931]
[1747479071293,0.2509,102940.0,102930.0,0.72673931]
[1747479071591,0.2509,102940.0,102930.0,0.78016931]
[1747479071792,0.19,102940.0,102930.0,0.78016931]
[1747479072101,0.19,102940.0,102930.0,1.13156931]
[1747479072286,0.19,102940.0,102930.0,1.29484143]
[1747479073195,0.01,102940.0,102930.0,1.29484143]
[1747479073701,0.1014,102950.0,102940.0,0.194221]
[1747479073995,0.1014,102950.0,102940.0,1.2431559]
[1747479074199,0.2814,102950.0,102940.0,1.2431559]
[1747479074797,0.2814,102950.0,102940.0,1.16385639]
[1747479075191,0.2824,102950.0,102940.0,1.35723267]
[1747479075799,0.2824,102950.0,102940.0,1.43653218]
[1747479077795,0.191,102950.0,102940.0,1.78693218]
[1747479078799,0.0758,102960.0,102950.0,0.1942021]
[1747479079097,0.2558,102960.0,102950.0,1.08110161]
[1747479079395,0.192,102960.0,102950.0,1.16040112]
[1747479079596,0.192,102960.0,102950.0,1.20231914]
[1747479080100,0.192,102960.0,102950.0,1.29944714]
[1747479080497,0.192,102960.0,102950.0,1.30044714]
[1747479080697,0.192,102960.0,102950.0,1.30144714]
[1747479081199,0.192,102960.0,102950.0,1.30344714]
[1747479081598,0.192,102960.0,102950.0,1.52057695]
[1747479081798,0.192,102960.0,102950.0,1.62057695]
[1747479082098,0.01,102970.0,102960.0,0.1941832]
[1747479082296,0.01,102970.0,102960.0,1.22976222]
[1747479083200,0.19,102970.0,102960.0,1.27168024]
[1747479083497,0.19,102970.0,102960.0,1.27268024]
[1747479083698,0.19,102970.0,102960.0,1.63448024]
[1747479084403,0.2208,102970.0,102960.0,1.63448024]
[1747479084606,0.2538,102970.0,102960.0,1.63448024]
[1747479084806,0.2538,102970.0,102960.0,1.63648024]
[1747479085109,0.2548,102970.0,102960.0,1.74415868]
[1747479085611,0.191,102970.0,102960.0,1.74415868]
[1747479086910,0.224,102970.0,102960.0,1.74415868]
[1747479087109,0.224,102970.0,102960.0,1.79756868]
[1747479088410,0.2563,102970.0,102960.0,1.79756868]